[Event "*** Titled Tuesday Blitz"]
[Site "Chess.com"]
[Date "2019.04.02"]
[Round "1"]
[White "swisspower96"]
[Black "albano87"]
[Result "1-0"]
[WhiteElo "2610"]
[BlackElo "2282"]
[TimeControl "180+2"]
[EndTime "14:11:45 PDT"]
[Termination "swisspower96 won by resignation"]

1. d4 {[%clk 0:03:01.9]} 1... d5 {[%clk 0:02:58.3]} 2. c4 {[%clk 0:03:02.9]}
2... e6 {[%clk 0:02:59.4]} 3. Nf3 {[%clk 0:03:03.9]} 3... Nf6 {[%clk 0:02:59.8]}
4. g3 {[%clk 0:03:05.1]} 4... Be7 {[%clk 0:03:01.1]} 5. Bg2 {[%clk 0:03:06.3]}
5... O-O {[%clk 0:03:02.6]} 6. O-O {[%clk 0:03:07.3]} 6... dxc4 {[%clk
0:03:03.9]} 7. Qc2 {[%clk 0:03:07.3]} 7... a6 {[%clk 0:03:04.8]} 8. a4 {[%clk
0:03:08.5]} 8... Bd7 {[%clk 0:03:05.8]} 9. Qxc4 {[%clk 0:03:09.8]} 9... Bc6
{[%clk 0:03:06.7]} 10. Bg5 {[%clk 0:03:11.4]} 10... a5 {[%clk 0:03:05.9]} 11.
Nc3 {[%clk 0:03:08.4]} 11... Na6 {[%clk 0:03:05.6]} 12. Rfe1 {[%clk 0:03:02.2]}
12... Bd5 {[%clk 0:03:04.2]} 13. Nxd5 {[%clk 0:02:44.9]} 13... exd5 {[%clk
0:03:03.3]} 14. Qc1 {[%clk 0:02:41.1]} 14... Ne4 {[%clk 0:02:59.9]} 15. Bxe7
{[%clk 0:02:39]} 15... Qxe7 {[%clk 0:03:00.8]} 16. Ne5 {[%clk 0:02:40.6]} 16...
c5 {[%clk 0:02:44.7]} 17. Nd3 {[%clk 0:02:34]} 17... Rac8 {[%clk 0:02:41.1]} 18.
dxc5 {[%clk 0:02:33.5]} 18... Naxc5 {[%clk 0:02:41.7]} 19. Qd1 {[%clk
0:02:30.6]} 19... Qf6 {[%clk 0:02:37.5]} 20. Rf1 {[%clk 0:01:47.4]} 20... Rfd8
{[%clk 0:02:27.4]} 21. Rc1 {[%clk 0:01:46.4]} 21... h6 {[%clk 0:01:44.4]} 22.
Nxc5 {[%clk 0:01:25.8]} 22... Rxc5 {[%clk 0:01:45.7]} 23. Rxc5 {[%clk
0:01:19.7]} 23... Nxc5 {[%clk 0:01:46.4]} 24. Qc2 {[%clk 0:01:21.1]} 24... Ne4
{[%clk 0:01:41.7]} 25. e3 {[%clk 0:01:16.7]} 25... Ng5 {[%clk 0:01:34.3]} 26.
Qe2 {[%clk 0:01:13.7]} 26... d4 {[%clk 0:01:26]} 27. exd4 {[%clk 0:01:11.7]}
27... Qxd4 {[%clk 0:01:20.6]} 28. b3 {[%clk 0:01:06.5]} 28... b6 {[%clk
0:01:14.7]} 29. Qb5 {[%clk 0:01:02.6]} 29... Ne6 {[%clk 0:01:10.9]} 30. Bf3
{[%clk 0:00:53]} 30... Qb4 {[%clk 0:00:59.2]} 31. Qxb4 {[%clk 0:00:29.2]} 31...
axb4 {[%clk 0:01:00]} 32. Rc1 {[%clk 0:00:26.1]} 32... Nc5 {[%clk 0:00:53.1]}
33. Rc4 {[%clk 0:00:25.6]} 33... Rd3 {[%clk 0:00:50.4]} 34. Bc6 {[%clk
0:00:21.5]} 34... Rxb3 {[%clk 0:00:45.8]} 35. a5 {[%clk 0:00:22.8]} 35... Rc3
{[%clk 0:00:41.7]} 36. Rxb4 {[%clk 0:00:20.7]} 36... bxa5 {[%clk 0:00:42.6]} 37.
Rb8+ {[%clk 0:00:22.4]} 37... Kh7 {[%clk 0:00:43.4]} 38. Ra8 {[%clk 0:00:24.3]}
38... Nb3 {[%clk 0:00:34.5]} 39. Bd5 {[%clk 0:00:23.9]} 39... f6 {[%clk
0:00:16.6]} 40. h4 {[%clk 0:00:25.1]} 40... Kg6 {[%clk 0:00:16.6]} 41. Be4+
{[%clk 0:00:24.8]} 41... Kh5 {[%clk 0:00:15.3]} 42. Kg2 {[%clk 0:00:21.5]} 42...
Rc5 {[%clk 0:00:15.7]} 43. Bc2 {[%clk 0:00:21.5]} 43... Nd4 {[%clk 0:00:15.7]}
44. Bd1+ {[%clk 0:00:22.3]} 44... Kg6 {[%clk 0:00:16.6]} 45. h5+ {[%clk
0:00:22.3]} 45... Kg5 {[%clk 0:00:16.6]} 46. Ra7 {[%clk 0:00:22.5]} 46... Ne6
{[%clk 0:00:16.4]} 47. Bb3 {[%clk 0:00:23]} 47... Re5 {[%clk 0:00:16.2]} 48. f4+
{[%clk 0:00:20.9]} 48... Nxf4+ {[%clk 0:00:15.7]} 49. gxf4+ {[%clk 0:00:22.3]}
49... Kxf4 {[%clk 0:00:17.6]} 50. Bd1 {[%clk 0:00:23.9]} 50... Rg5+ {[%clk
0:00:17.6]} 51. Kf2 {[%clk 0:00:24.9]} 51... Ke4 {[%clk 0:00:17.8]} 52. Bf3+
{[%clk 0:00:26]} 52... Kd4 {[%clk 0:00:19]} 53. Ke2 {[%clk 0:00:25]} 53... Kc4
{[%clk 0:00:20.2]} 54. Ke3 {[%clk 0:00:20.3]} 54... Kb4 {[%clk 0:00:20.8]} 55.
Bd1 {[%clk 0:00:21.9]} 55... Re5+ {[%clk 0:00:20.7]} 56. Kd4 {[%clk 0:00:23]}
56... Rg5 {[%clk 0:00:20.3]} 57. Ke4 {[%clk 0:00:23.2]} 57... Kc3 {[%clk
0:00:20.3]} 58. Rb7 {[%clk 0:00:23]} 58... Kd2 {[%clk 0:00:20.2]} 59. Bf3 {[%clk
0:00:24.2]} 59... a4 {[%clk 0:00:20.8]} 60. Ra7 {[%clk 0:00:25.6]} 60... Re5+
{[%clk 0:00:21.7]} 61. Kf4 {[%clk 0:00:26.4]} 61... Rg5 {[%clk 0:00:17.9]} 62.
Rxa4 {[%clk 0:00:27.5]} 62... Ke1 {[%clk 0:00:19.8]} 63. Ra2 {[%clk 0:00:28]}
63... Re5 {[%clk 0:00:19.5]} 64. Rg2 {[%clk 0:00:25.8]} 64... Rg5 {[%clk
0:00:20.2]} 65. Re2+ {[%clk 0:00:27]} 65... Kf1 {[%clk 0:00:20.9]} 66. Rd2
{[%clk 0:00:26.8]} 66... Kg1 {[%clk 0:00:22.2]} 67. Rd1+ {[%clk 0:00:28]} 67...
Kf2 {[%clk 0:00:23.4]} 68. Rd2+ {[%clk 0:00:26.5]} 68... Kg1 {[%clk 0:00:24.4]}
69. Ke4 {[%clk 0:00:24.1]} 69... Re5+ {[%clk 0:00:25]} 70. Kf4 {[%clk
0:00:24.8]} 70... Rg5 {[%clk 0:00:26]} 71. Ke3 {[%clk 0:00:26.1]} 71... Re5+
{[%clk 0:00:26.9]} 72. Kf4 {[%clk 0:00:27]} 72... Rg5 {[%clk 0:00:27.8]} 73. Ra2
{[%clk 0:00:27.1]} 73... Re5 {[%clk 0:00:27.2]} 74. Bg4 {[%clk 0:00:27.8]} 74...
Rb5 {[%clk 0:00:24.1]} 75. Kg3 {[%clk 0:00:28.3]} 75... Rb1 {[%clk 0:00:20.2]}
76. Bf3 {[%clk 0:00:29]} 76... Kf1 {[%clk 0:00:20.6]} 77. Ra7 {[%clk 0:00:29.9]}
77... Ke1 {[%clk 0:00:20.4]} 78. Rxg7 {[%clk 0:00:30.8]} 78... Kd2 {[%clk
0:00:22.3]} 79. Rg6 {[%clk 0:00:30.1]} 79... f5 {[%clk 0:00:23.2]} 80. Rxh6
{[%clk 0:00:30.6]} 80... Ke3 {[%clk 0:00:23.6]} 81. Re6+ {[%clk 0:00:31.6]} 1-0

[Event "*** Titled Tuesday Blitz"]
[Site "Chess.com"]
[Date "2019.04.02"]
[Round "1"]
[White "maciek_92"]
[Black "WPWPWP-2015"]
[Result "0-1"]
[WhiteElo "2675"]
[BlackElo "2387"]
[TimeControl "180+2"]
[EndTime "14:12:21 PDT"]
[Termination "WPWPWP-2015 won by resignation"]

1. c4 {[%clk 0:03:01.9]} 1... Nf6 {[%clk 0:02:59]} 2. Nc3 {[%clk 0:03:02.4]}
2... c6 {[%clk 0:02:57.6]} 3. e4 {[%clk 0:02:52.4]} 3... e5 {[%clk 0:02:58]} 4.
Nf3 {[%clk 0:02:52.9]} 4... d6 {[%clk 0:02:58.3]} 5. d4 {[%clk 0:02:53.6]} 5...
exd4 {[%clk 0:02:53.2]} 6. Nxd4 {[%clk 0:02:54.2]} 6... Be7 {[%clk 0:02:54.3]}
7. Bd3 {[%clk 0:02:53.1]} 7... O-O {[%clk 0:02:54.2]} 8. O-O {[%clk 0:02:54.3]}
8... Nbd7 {[%clk 0:02:54.3]} 9. h3 {[%clk 0:02:55.3]} 9... Nc5 {[%clk
0:02:54.9]} 10. Bc2 {[%clk 0:02:56.8]} 10... Re8 {[%clk 0:02:55.2]} 11. Re1
{[%clk 0:02:56.7]} 11... h6 {[%clk 0:02:50.7]} 12. b4 {[%clk 0:02:48]} 12... Ne6
{[%clk 0:02:48.9]} 13. Nb3 {[%clk 0:02:49.3]} 13... Nd7 {[%clk 0:02:36]} 14. Bb2
{[%clk 0:02:33.1]} 14... Ne5 {[%clk 0:02:34]} 15. Bd3 {[%clk 0:02:16.3]} 15...
Bf8 {[%clk 0:02:27.5]} 16. Bf1 {[%clk 0:02:03.7]} 16... Qg5 {[%clk 0:02:22.3]}
17. g3 {[%clk 0:01:52.9]} 17... Qf6 {[%clk 0:01:43.8]} 18. Re3 {[%clk
0:01:26.7]} 18... g5 {[%clk 0:01:28.3]} 19. Rc1 {[%clk 0:01:18.5]} 19... Qg6
{[%clk 0:01:15.2]} 20. Nd4 {[%clk 0:01:02.6]} 20... Nxd4 {[%clk 0:00:47.8]} 21.
Qxd4 {[%clk 0:01:04.5]} 21... Be6 {[%clk 0:00:48.3]} 22. Nb1 {[%clk 0:00:39]}
22... Rad8 {[%clk 0:00:46.8]} 23. Qd1 {[%clk 0:00:31.7]} 23... Bg7 {[%clk
0:00:46.7]} 24. Rc2 {[%clk 0:00:32.1]} 24... h5 {[%clk 0:00:42.2]} 25. Nd2
{[%clk 0:00:26.1]} 25... g4 {[%clk 0:00:42.7]} 26. h4 {[%clk 0:00:27.7]} 26...
Bc8 {[%clk 0:00:39.8]} 27. Ra3 {[%clk 0:00:27.6]} 27... a6 {[%clk 0:00:40.1]}
28. Bg2 {[%clk 0:00:28.6]} 28... Qe6 {[%clk 0:00:35.7]} 29. Qc1 {[%clk
0:00:19.1]} 29... Bh6 {[%clk 0:00:36.5]} 30. Qd1 {[%clk 0:00:17]} 30... b5
{[%clk 0:00:36.8]} 31. cxb5 {[%clk 0:00:16.9]} 31... axb5 {[%clk 0:00:37.9]} 32.
Rac3 {[%clk 0:00:17.6]} 32... Bb7 {[%clk 0:00:36.4]} 33. Nf1 {[%clk 0:00:18.8]}
33... Bg7 {[%clk 0:00:35.8]} 34. Ba1 {[%clk 0:00:20]} 34... Nc4 {[%clk
0:00:35.6]} 35. Rd3 {[%clk 0:00:19.2]} 35... Ne5 {[%clk 0:00:35.7]} 36. Rdc3
{[%clk 0:00:20]} 36... Ra8 {[%clk 0:00:35.9]} 37. Ne3 {[%clk 0:00:20.7]} 37...
Bf6 {[%clk 0:00:28.3]} 38. Nf5 {[%clk 0:00:21.2]} 38... Rad8 {[%clk 0:00:25.5]}
39. Nd4 {[%clk 0:00:21.8]} 39... Qe7 {[%clk 0:00:22.5]} 40. Nf5 {[%clk
0:00:21.9]} 40... Qe6 {[%clk 0:00:23.2]} 41. Qd2 {[%clk 0:00:23.4]} 41... d5
{[%clk 0:00:21.4]} 42. Nd4 {[%clk 0:00:20.3]} 42... Qe7 {[%clk 0:00:20.5]} 43.
exd5 {[%clk 0:00:21.5]} 43... Nc4 {[%clk 0:00:18.7]} 44. Qd3 {[%clk 0:00:14.9]}
44... Qe1+ {[%clk 0:00:14.7]} 45. Kh2 {[%clk 0:00:16.3]} 45... Qxa1 {[%clk
0:00:15]} 46. Rc1 {[%clk 0:00:15.8]} 46... Qxa2 {[%clk 0:00:14.5]} 47. R3c2
{[%clk 0:00:16]} 47... Qa8 {[%clk 0:00:14.8]} 48. Nf5 {[%clk 0:00:13.7]} 48...
cxd5 {[%clk 0:00:13.3]} 49. Nh6+ {[%clk 0:00:15.3]} 49... Kg7 {[%clk 0:00:13.3]}
50. Qf5 {[%clk 0:00:16.3]} 50... Rh8 {[%clk 0:00:11.4]} 51. Nxg4 {[%clk
0:00:10.9]} 51... hxg4 {[%clk 0:00:10.8]} 52. Qxg4+ {[%clk 0:00:12.8]} 52... Kf8
{[%clk 0:00:12.1]} 53. Qf5 {[%clk 0:00:13.1]} 53... Qa6 {[%clk 0:00:12.7]} 54.
Ra2 {[%clk 0:00:11.8]} 54... Qe6 {[%clk 0:00:13.3]} 55. Qf3 {[%clk 0:00:13.2]}
55... Bc8 {[%clk 0:00:10.9]} 56. Re2 {[%clk 0:00:12.9]} 56... Qf5 {[%clk
0:00:10.4]} 57. Qb3 {[%clk 0:00:12.8]} 57... Kg7 {[%clk 0:00:09.2]} 58. Rce1
{[%clk 0:00:13.2]} 58... Be6 {[%clk 0:00:09.2]} 59. Kg1 {[%clk 0:00:13.9]} 59...
d4 {[%clk 0:00:08.6]} 60. Be4 {[%clk 0:00:14.6]} 60... Qg4 {[%clk 0:00:08.9]}
61. Qd3 {[%clk 0:00:15.9]} 61... Ne5 {[%clk 0:00:08.8]} 62. Qb1 {[%clk 0:00:16]}
62... Nf3+ {[%clk 0:00:09.2]} 63. Bxf3 {[%clk 0:00:17.3]} 63... Qxf3 {[%clk
0:00:10.4]} 64. Qc1 {[%clk 0:00:15.2]} 64... Rd7 {[%clk 0:00:07.9]} 65. Re4
{[%clk 0:00:11.4]} 65... d3 {[%clk 0:00:08]} 66. Qd2 {[%clk 0:00:12.9]} 66...
Qf5 {[%clk 0:00:04.9]} 67. Rf4 {[%clk 0:00:13.7]} 67... Qg6 {[%clk 0:00:06.2]}
68. Re3 {[%clk 0:00:14.3]} 68... Be7 {[%clk 0:00:06.6]} 69. Qc3+ {[%clk
0:00:14.3]} 69... Kg8 {[%clk 0:00:07.9]} 70. Qc8+ {[%clk 0:00:13.8]} 70... Rd8
{[%clk 0:00:08.7]} 71. Qc7 {[%clk 0:00:07.4]} 71... Kf8 {[%clk 0:00:08]} 72. Qe5
{[%clk 0:00:07.8]} 72... Rg8 {[%clk 0:00:06.4]} 73. Rd4 {[%clk 0:00:07.6]} 73...
Rxd4 {[%clk 0:00:06.6]} 74. Qxd4 {[%clk 0:00:09.5]} 74... Bf6 {[%clk 0:00:06.1]}
75. Qd6+ {[%clk 0:00:09.9]} 75... Kg7 {[%clk 0:00:06.8]} 76. Qxd3 {[%clk
0:00:08.9]} 76... Qxd3 {[%clk 0:00:06.6]} 77. Rxd3 {[%clk 0:00:10.8]} 77... Bc4
{[%clk 0:00:06.9]} 78. Rf3 {[%clk 0:00:11.4]} 78... Be7 {[%clk 0:00:07.8]} 79.
g4 {[%clk 0:00:11.1]} 79... Bxb4 {[%clk 0:00:08.7]} 80. g5 {[%clk 0:00:12.7]}
80... Rh8 {[%clk 0:00:09.1]} 81. Rf4 {[%clk 0:00:13.5]} 81... Bd6 {[%clk
0:00:09.6]} 82. Rd4 {[%clk 0:00:14.5]} 82... Bc5 {[%clk 0:00:10.6]} 83. Rf4
{[%clk 0:00:16]} 83... Bd6 {[%clk 0:00:10.8]} 84. Rd4 {[%clk 0:00:16.7]} 84...
Be7 {[%clk 0:00:12]} 85. Kg2 {[%clk 0:00:16.5]} 85... Be6 {[%clk 0:00:12]} 86.
Kg3 {[%clk 0:00:17.6]} 86... b4 {[%clk 0:00:12.7]} 87. f4 {[%clk 0:00:18.9]}
87... b3 {[%clk 0:00:13.6]} 88. Rd1 {[%clk 0:00:16.7]} 88... Bf5 {[%clk
0:00:14.1]} 89. Rd2 {[%clk 0:00:18]} 89... Ba3 {[%clk 0:00:13.4]} 90. h5 {[%clk
0:00:19.9]} 90... b2 {[%clk 0:00:14.4]} 91. h6+ {[%clk 0:00:21.8]} 91... Kh7
{[%clk 0:00:14.9]} 0-1

[Event "*** Titled Tuesday Blitz"]
[Site "Chess.com"]
[Date "2019.04.02"]
[Round "1"]
[White "Floatingdream1"]
[Black "Alopekos"]
[Result "1/2-1/2"]
[WhiteElo "2819"]
[BlackElo "2466"]
[TimeControl "180+2"]
[EndTime "14:12:35 PDT"]
[Termination "Game drawn by repetition"]

1. d4 {[%clk 0:03:00.6]} 1... Nf6 {[%clk 0:03:00.6]} 2. c4 {[%clk 0:03:01.5]}
2... e6 {[%clk 0:03:00.8]} 3. g3 {[%clk 0:03:02.6]} 3... d5 {[%clk 0:03:02.1]}
4. Nf3 {[%clk 0:03:03.7]} 4... Be7 {[%clk 0:03:03.5]} 5. Bg2 {[%clk 0:03:04.9]}
5... O-O {[%clk 0:03:05.2]} 6. O-O {[%clk 0:03:06.7]} 6... dxc4 {[%clk
0:03:06.8]} 7. Ne5 {[%clk 0:03:07.2]} 7... c5 {[%clk 0:03:07.6]} 8. dxc5 {[%clk
0:03:07.1]} 8... Qc7 {[%clk 0:03:08.9]} 9. Nxc4 {[%clk 0:03:07.1]} 9... Qxc5
{[%clk 0:03:10.4]} 10. Qb3 {[%clk 0:03:03.8]} 10... Nc6 {[%clk 0:03:09.9]} 11.
Be3 {[%clk 0:03:00.7]} 11... Qh5 {[%clk 0:03:09]} 12. h3 {[%clk 0:02:45.1]}
12... Qxe2 {[%clk 0:03:08.9]} 13. Nc3 {[%clk 0:02:45.7]} 13... Qh5 {[%clk
0:03:09.6]} 14. Rad1 {[%clk 0:02:42.4]} 14... e5 {[%clk 0:02:12.5]} 15. g4
{[%clk 0:02:40.1]} 15... Qh4 {[%clk 0:02:02.4]} 16. Nd6 {[%clk 0:02:34.5]} 16...
Bxg4 {[%clk 0:01:06.8]} 17. hxg4 {[%clk 0:02:22.2]} 17... Nxg4 {[%clk
0:01:06.4]} 18. Rfe1 {[%clk 0:02:23.1]} 18... Nd4 {[%clk 0:01:05.6]} 19. Qd5
{[%clk 0:02:00.2]} 19... Rad8 {[%clk 0:00:44.7]} 20. Nce4 {[%clk 0:01:59.2]}
20... Nc2 {[%clk 0:00:15.9]} 21. Re2 {[%clk 0:01:24.5]} 21... Ncxe3 {[%clk
0:00:17]} 22. fxe3 {[%clk 0:01:25.4]} 22... Qh6 {[%clk 0:00:18.5]} 23. Rd3
{[%clk 0:01:14.3]} 23... Kh8 {[%clk 0:00:07.8]} 24. Nxf7+ {[%clk 0:01:13.6]}
24... Rxf7 {[%clk 0:00:08.9]} 25. Qxd8+ {[%clk 0:01:14.7]} 25... Rf8 {[%clk
0:00:10.1]} 26. Qxf8+ {[%clk 0:01:04.6]} 26... Bxf8 {[%clk 0:00:12]} 27. Rd8
{[%clk 0:01:00.9]} 27... g6 {[%clk 0:00:12.6]} 28. Bf3 {[%clk 0:00:49.7]} 28...
Nxe3 {[%clk 0:00:11.9]} 29. Rh2 {[%clk 0:00:48.4]} 29... Qf4 {[%clk 0:00:11.3]}
30. Rf2 {[%clk 0:00:46.1]} 30... Ng4 {[%clk 0:00:08.4]} 31. Rxf8+ {[%clk
0:00:41.2]} 31... Qxf8 {[%clk 0:00:08]} 32. Bxg4 {[%clk 0:00:43.1]} 32... Qb4
{[%clk 0:00:07.3]} 33. Bf3 {[%clk 0:00:42.4]} 33... Kg7 {[%clk 0:00:07.9]} 34.
Kg2 {[%clk 0:00:43.6]} 34... Qc4 {[%clk 0:00:05.5]} 35. b3 {[%clk 0:00:42.9]}
35... Qc7 {[%clk 0:00:05.8]} 36. Rd2 {[%clk 0:00:43.6]} 36... Kh6 {[%clk
0:00:03.5]} 37. Kg3 {[%clk 0:00:36.9]} 37... Kg7 {[%clk 0:00:04.5]} 38. Rd3
{[%clk 0:00:33.4]} 38... h5 {[%clk 0:00:05.5]} 39. Kg2 {[%clk 0:00:33.3]} 39...
Kh6 {[%clk 0:00:06.1]} 40. Rd2 {[%clk 0:00:32.7]} 40... Qa5 {[%clk 0:00:05.7]}
41. Rc2 {[%clk 0:00:32.4]} 41... Qd8 {[%clk 0:00:04.4]} 42. Rd2 {[%clk
0:00:26.6]} 42... Qa5 {[%clk 0:00:05.3]} 43. a4 {[%clk 0:00:26.6]} 43... Qb6
{[%clk 0:00:05]} 44. Rd3 {[%clk 0:00:27.1]} 44... Qc7 {[%clk 0:00:05.6]} 45. Rd2
{[%clk 0:00:27.3]} 45... Qb6 {[%clk 0:00:06.3]} 46. Rd3 {[%clk 0:00:28.1]} 46...
Qc7 {[%clk 0:00:07.7]} 47. Rc3 {[%clk 0:00:28.8]} 47... Qd7 {[%clk 0:00:07.5]}
48. Rc5 {[%clk 0:00:29.5]} 48... Qe7 {[%clk 0:00:05.7]} 49. Rd5 {[%clk
0:00:29.3]} 49... h4 {[%clk 0:00:04.2]} 50. Bg4 {[%clk 0:00:28.7]} 50... Qf7
{[%clk 0:00:04.4]} 51. Rxe5 {[%clk 0:00:28.6]} 51... Qxb3 {[%clk 0:00:05.4]} 52.
Nf2 {[%clk 0:00:26.8]} 52... Qxa4 {[%clk 0:00:04.4]} 53. Re4 {[%clk 0:00:28.3]}
53... Qc6 {[%clk 0:00:05.1]} 54. Bf3 {[%clk 0:00:29.7]} 54... Qc7 {[%clk
0:00:04]} 55. Rxh4+ {[%clk 0:00:29.6]} 55... Kg7 {[%clk 0:00:05.6]} 56. Rg4
{[%clk 0:00:31.3]} 56... Qd7 {[%clk 0:00:04.9]} 57. Be4 {[%clk 0:00:32]} 57...
Qe6 {[%clk 0:00:05.7]} 58. Kf3 {[%clk 0:00:31.7]} 58... a5 {[%clk 0:00:06.3]}
59. Nd3 {[%clk 0:00:29.9]} 59... b5 {[%clk 0:00:04.9]} 60. Nf4 {[%clk
0:00:23.2]} 60... Qb3+ {[%clk 0:00:05.7]} 61. Bd3 {[%clk 0:00:24.3]} 61... Kf6
{[%clk 0:00:05.9]} 62. Rxg6+ {[%clk 0:00:25.3]} 62... Ke5 {[%clk 0:00:07.1]} 63.
Ke3 {[%clk 0:00:25.2]} 63... a4 {[%clk 0:00:04.7]} 64. Rg5+ {[%clk 0:00:26.1]}
64... Kd6 {[%clk 0:00:05.4]} 65. Rxb5 {[%clk 0:00:27.8]} 65... Qd1 {[%clk
0:00:04.4]} 66. Rd5+ {[%clk 0:00:28.3]} 66... Kc7 {[%clk 0:00:04.3]} 67. Ne6+
{[%clk 0:00:29.3]} 67... Kb6 {[%clk 0:00:05.5]} 68. Rd6+ {[%clk 0:00:29.7]}
68... Ka5 {[%clk 0:00:05.4]} 69. Ra6+ {[%clk 0:00:29.1]} 69... Kb4 {[%clk
0:00:06.3]} 70. Rb6+ {[%clk 0:00:30.8]} 70... Ka3 {[%clk 0:00:06.3]} 71. Nd4
{[%clk 0:00:31.5]} 71... Qg1+ {[%clk 0:00:06.4]} 72. Ke4 {[%clk 0:00:32.1]}
72... Qg4+ {[%clk 0:00:05.8]} 73. Kd5 {[%clk 0:00:32.3]} 73... Qg8+ {[%clk
0:00:06.4]} 74. Kc5 {[%clk 0:00:32.7]} 74... Qf8+ {[%clk 0:00:07.6]} 75. Kc4
{[%clk 0:00:33.1]} 75... Qf7+ {[%clk 0:00:05.8]} 76. Kc3 {[%clk 0:00:34]} 76...
Qc7+ {[%clk 0:00:06.6]} 77. Rc6 {[%clk 0:00:35]} 77... Qa5+ {[%clk 0:00:06.7]}
78. Kc2 {[%clk 0:00:31.9]} 78... Qb4 {[%clk 0:00:07.8]} 79. Rc3+ {[%clk
0:00:32.7]} 79... Ka2 {[%clk 0:00:08.9]} 80. Rc4 {[%clk 0:00:31.9]} 80... Qb2+
{[%clk 0:00:07.5]} 81. Kd1 {[%clk 0:00:33.2]} 81... Qa1+ {[%clk 0:00:05.4]} 82.
Kd2 {[%clk 0:00:32.3]} 82... a3 {[%clk 0:00:04.4]} 83. Rc2+ {[%clk 0:00:33.1]}
83... Qb2 {[%clk 0:00:05.2]} 84. Bc4+ {[%clk 0:00:33.4]} 84... Ka1 {[%clk
0:00:05.7]} 85. Rxb2 {[%clk 0:00:32.2]} 85... axb2 {[%clk 0:00:07.6]} 86. Nc2+
{[%clk 0:00:25.7]} 86... Kb1 {[%clk 0:00:08.6]} 87. Nd4 {[%clk 0:00:19.5]} 87...
Ka1 {[%clk 0:00:08.7]} 88. Nb3+ {[%clk 0:00:20.4]} 88... Ka2 {[%clk 0:00:05.6]}
89. Nc5+ {[%clk 0:00:21.4]} 89... Ka1 {[%clk 0:00:05.1]} 90. Nb3+ {[%clk
0:00:22.1]} 90... Ka2 {[%clk 0:00:06.2]} 91. Nd4+ {[%clk 0:00:23.1]} 91... Ka1
{[%clk 0:00:07]} 92. Nc2+ {[%clk 0:00:19.9]} 92... Kb1 {[%clk 0:00:06.4]} 93.
Nd4 {[%clk 0:00:19.9]} 93... Ka1 {[%clk 0:00:07]} 1/2-1/2

[Event "*** Titled Tuesday Blitz"]
[Site "Chess.com"]
[Date "2019.04.02"]
[Round "2"]
[White "moro182"]
[Black "Ar4uha"]
[Result "1-0"]
[WhiteElo "2762"]
[BlackElo "2510"]
[TimeControl "180+2"]
[EndTime "14:16:17 PDT"]
[Termination "moro182 won by resignation"]

1. d4 {[%clk 0:03:00.1]} 1... Nf6 {[%clk 0:02:42.7]} 2. c4 {[%clk 0:03:00]} 2...
e6 {[%clk 0:02:44.6]} 3. Nc3 {[%clk 0:03:00.2]} 3... Bb4 {[%clk 0:02:45.1]} 4.
e3 {[%clk 0:03:00.8]} 4... O-O {[%clk 0:02:46.1]} 5. Nf3 {[%clk 0:03:01.3]} 5...
b6 {[%clk 0:02:46.8]} 6. Bd3 {[%clk 0:03:02.4]} 6... Bb7 {[%clk 0:02:48.2]} 7.
O-O {[%clk 0:03:04]} 7... d5 {[%clk 0:02:49.8]} 8. cxd5 {[%clk 0:03:05.6]} 8...
exd5 {[%clk 0:02:51.2]} 9. Ne5 {[%clk 0:03:07.2]} 9... Nbd7 {[%clk 0:02:51.2]}
10. f4 {[%clk 0:03:08.2]} 10... Re8 {[%clk 0:02:51.9]} 11. Ne2 {[%clk
0:03:06.3]} 11... Nf8 {[%clk 0:02:47.9]} 12. Ng3 {[%clk 0:03:06.9]} 12... Bd6
{[%clk 0:02:29.2]} 13. Qc2 {[%clk 0:03:06.6]} 13... c5 {[%clk 0:02:29.7]} 14.
Bd2 {[%clk 0:03:07]} 14... Rc8 {[%clk 0:02:30.1]} 15. Qd1 {[%clk 0:03:07.7]}
15... Ne4 {[%clk 0:02:29.8]} 16. Nxe4 {[%clk 0:03:07.1]} 16... dxe4 {[%clk
0:02:31.7]} 17. Bc4 {[%clk 0:03:07]} 17... Bxe5 {[%clk 0:02:33]} 18. fxe5 {[%clk
0:03:06.8]} 18... Bd5 {[%clk 0:02:34.9]} 19. Bb5 {[%clk 0:03:05.4]} 19... Bc6
{[%clk 0:02:35.5]} 20. Bxc6 {[%clk 0:03:06.4]} 20... Rxc6 {[%clk 0:02:37.4]} 21.
Qa4 {[%clk 0:03:07.3]} 21... Rc7 {[%clk 0:02:34.7]} 22. Bc3 {[%clk 0:03:07.4]}
22... Ne6 {[%clk 0:02:35.7]} 23. Rad1 {[%clk 0:03:07.1]} 23... Qd5 {[%clk
0:02:36]} 24. Qxe8+ {[%clk 0:03:04.6]} 1-0

[Event "*** Titled Tuesday Blitz"]
[Site "Chess.com"]
[Date "2019.04.02"]
[Round "2"]
[White "Last7Samurai"]
[Black "sofaceindisguise"]
[Result "1-0"]
[WhiteElo "2734"]
[BlackElo "2547"]
[TimeControl "180+2"]
[EndTime "14:16:35 PDT"]
[Termination "Last7Samurai won by resignation"]

1. e4 {[%clk 0:03:01.9]} 1... e5 {[%clk 0:02:59.8]} 2. Nf3 {[%clk 0:03:01.2]}
2... Nc6 {[%clk 0:03:00.6]} 3. Bb5 {[%clk 0:03:01.7]} 3... a6 {[%clk 0:03:00.9]}
4. Ba4 {[%clk 0:03:02.8]} 4... Nge7 {[%clk 0:03:00.7]} 5. O-O {[%clk 0:03:02.7]}
5... g6 {[%clk 0:03:01.3]} 6. c3 {[%clk 0:03:01.6]} 6... Bg7 {[%clk 0:02:56.5]}
7. d4 {[%clk 0:03:02.1]} 7... exd4 {[%clk 0:02:56.8]} 8. cxd4 {[%clk 0:03:04]}
8... b5 {[%clk 0:02:57.2]} 9. Bb3 {[%clk 0:03:04.5]} 9... d6 {[%clk 0:02:58.5]}
10. d5 {[%clk 0:03:05]} 10... Na5 {[%clk 0:02:57.6]} 11. Bd2 {[%clk 0:03:05.9]}
11... Nxb3 {[%clk 0:02:53.1]} 12. Qxb3 {[%clk 0:03:06.4]} 12... O-O {[%clk
0:02:53.9]} 13. Bc3 {[%clk 0:03:06]} 13... f6 {[%clk 0:02:17.9]} 14. Nbd2 {[%clk
0:03:03.9]} 14... Bd7 {[%clk 0:02:14.6]} 15. Rac1 {[%clk 0:03:02.9]} 15... a5
{[%clk 0:02:12.6]} 16. Bd4 {[%clk 0:02:48.1]} 16... c5 {[%clk 0:02:09]} 1-0

[Event "*** Titled Tuesday Blitz"]
[Site "Chess.com"]
[Date "2019.04.02"]
[Round "2"]
[White "MatthewG-p4p"]
[Black "x-6099009240"]
[Result "1-0"]
[WhiteElo "2658"]
[BlackElo "2353"]
[TimeControl "180+2"]
[EndTime "14:16:47 PDT"]
[Termination "MatthewG-p4p won by checkmate"]

1. Nf3 {[%clk 0:03:01.9]} 1... c5 {[%clk 0:03:00.3]} 2. b3 {[%clk 0:03:03.2]}
2... d5 {[%clk 0:02:59]} 3. Bb2 {[%clk 0:03:04.6]} 3... f6 {[%clk 0:02:59.9]} 4.
e3 {[%clk 0:02:59.5]} 4... e5 {[%clk 0:02:57.4]} 5. Nxe5 {[%clk 0:03:00.6]} 5...
fxe5 {[%clk 0:02:56]} 6. Qh5+ {[%clk 0:03:02.1]} 6... Kd7 {[%clk 0:02:57.5]} 7.
Qxe5 {[%clk 0:03:03.1]} 7... Nf6 {[%clk 0:02:56.6]} 8. Bb5+ {[%clk 0:02:59.4]}
8... Nc6 {[%clk 0:02:56]} 9. c4 {[%clk 0:02:59.7]} 9... Bd6 {[%clk 0:02:54.2]}
10. Qg5 {[%clk 0:03:00.6]} 10... dxc4 {[%clk 0:02:52.8]} 11. Qxg7+ {[%clk
0:03:01.4]} 11... Ke6 {[%clk 0:02:51.3]} 12. Bxc4+ {[%clk 0:03:02.3]} 12... Kf5
{[%clk 0:02:50.5]} 13. g4+ {[%clk 0:03:01.8]} 13... Nxg4 {[%clk 0:02:45.7]} 14.
f3 {[%clk 0:02:47.4]} 14... Qh4+ {[%clk 0:02:44.6]} 15. Kd1 {[%clk 0:02:31.1]}
15... Nf2+ {[%clk 0:02:41.8]} 16. Kc1 {[%clk 0:02:31.9]} 16... Nxh1 {[%clk
0:02:24.1]} 17. Qf7+ {[%clk 0:02:32.3]} 17... Kg5 {[%clk 0:02:17.8]} 18. Qf6+
{[%clk 0:02:33]} 18... Kh5 {[%clk 0:02:15.8]} 19. Bf7# {[%clk 0:02:33.9]} 1-0